fUSD/lending_fUSD_20240516
["ID","MTS","AMOUNT","RATE_DAILY","PERIOD"]
[327204570,1715897462799,-796.39,0.00012999,2]
[327204571,1715897462808,-796.60173433,0.00012999,2]
[327204572,1715897462818,-671.49,0.00012999,2]
[327204573,1715897462829,-671.49,0.00012999,2]
[327204574,1715897462838,-671.68097787,0.00012999,2]
[327204575,1715897462848,-2849.484698,0.00012999,2]
[327204576,1715897462857,-1757.37,0.00012999,2]
[327204577,1715897462866,-1757.37,0.00012999,2]
[327204578,1715897462875,-1757.37,0.00012999,2]
[327204579,1715897462884,-1757.37,0.00012999,2]
[327204580,1715897462893,-1757.37,0.00012999,2]
[327204581,1715897462903,-1757.37,0.00012999,2]
[327204582,1715897462911,-1757.48686125,0.00012999,2]
[327204583,1715897462921,-501.71,0.00012999,2]
[327204584,1715897462931,-501.71,0.00012999,2]
[327204585,1715897462941,-501.71,0.00012999,2]
[327204586,1715897462950,-501.71,0.00012999,2]
[327204587,1715897462960,-501.71,0.00012999,2]
[327204588,1715897462970,-501.71,0.00012999,2]
[327204589,1715897462979,-501.87800345,0.00012999,2]
[327204590,1715897462989,-1916.32,0.00012999,2]
[327204591,1715897462998,-1916.32,0.00012999,2]
[327204592,1715897463007,-1916.32,0.00012999,2]
[327204593,1715897463017,-1916.32,0.00012999,2]
[327204594,1715897463027,-1916.32,0.00012999,2]
[327204595,1715897463037,-1916.32,0.00012999,2]
[327204596,1715897463049,-1916.41962038,0.00012999,2]
[327204597,1715897463058,-816.353335,0.00012999,2]
[327204598,1715897463068,-905.49,0.00012999,2]
[327204599,1715897463079,-905.49,0.00012999,2]
[327204600,1715897463091,-905.49,0.00012999,2]
[327204601,1715897463100,-905.49,0.00012999,2]
[327204602,1715897463110,-905.49,0.00012999,2]
[327204603,1715897463122,-905.49,0.00012999,2]
[327204604,1715897463133,-905.60985904,0.00012999,2]
[327204605,1715897463142,-816.353339,0.00012999,2]
[327204606,1715897463152,-1844.6,0.00012999,2]
[327204607,1715897463161,-1844.6,0.00012999,2]
[327204608,1715897463170,-1844.6,0.00012999,2]
[327204609,1715897463180,-1844.6,0.00012999,2]
[327204610,1715897463189,-1844.6,0.00012999,2]
[327204611,1715897463199,-1844.6,0.00012999,2]
[327204612,1715897463208,-1844.80341974,0.00012999,2]
[327204613,1715897463217,-843.34,0.00012999,2]
[327204614,1715897463227,-843.34,0.00012999,2]
[327204615,1715897463237,-843.34,0.00012999,2]
[327204616,1715897463246,-843.34,0.00012999,2]
[327204617,1715897463256,-843.34,0.00012999,2]
[327204618,1715897463266,-843.34,0.00012999,2]
[327204619,1715897463276,-843.34,0.00012999,2]
[327204620,1715897463286,-843.34894551,0.00012999,2]
[327204621,1715897463295,-1739.1,0.00012999,2]
[327204622,1715897463305,-1739.1,0.00012999,2]
[327204623,1715897463314,-1739.1,0.00012999,2]
[327204624,1715897463324,-1739.1,0.00012999,2]
[327204625,1715897463336,-1739.1,0.00012999,2]
[327204626,1715897463345,-1739.1,0.00012999,2]
[327204627,1715897463471,-1739.1,0.00012999,2]
[327204628,1715897463504,-1739.24375795,0.00012999,2]
[327204629,1715897463514,-151.0,0.00012999,2]
[327204630,1715897463523,-150.0,0.00012999,2]
[327204631,1715897463533,-150.0,0.00012999,2]
[327204632,1715897463543,-150.0,0.00012999,2]
[327204633,1715897463552,-150.0,0.00012999,2]
[327204634,1715897463561,-150.0,0.00012999,2]
[327204635,1715897463570,-150.0,0.00012999,2]
[327204636,1715897463580,-150.0,0.00012999,2]
[327204637,1715897463590,-150.0,0.00012999,2]
[327204638,1715897463599,-150.0,0.00012999,2]
[327204639,1715897463608,-150.0,0.00012999,2]
[327204640,1715897463617,-212.93880221,0.00012999,2]
[327204641,1715897463626,-400.0,0.00013,2]
[327204642,1715897463636,-1047993.15407689,0.00013,2]
[327204643,1715897463645,-1067200.8330009,0.00013,2]
[327204644,1715897463654,-834.78576584,0.00013,2]
[327204645,1715897463663,-2002792.53178407,0.00013,2]
[327204646,1715897463893,-32186.18829478,0.00013,2]
[327204647,1715897464049,-1234.0,0.00010236,2]
[327204648,1715897464072,-1120.2525,0.00010236,2]
[327204649,1715897464084,-200.46697236,0.00011079,2]
[327204650,1715897464093,-200.46697233,0.00011247,2]
[327204651,1715897464103,-1588.67355531,0.00011849,2]
[327204652,1715897464120,-258.2424814,0.00011849,2]
[327204653,1715897464403,-200.46697233,0.00011415,2]
[327204654,1715897464413,-200.46697233,0.00011582,2]
[327204655,1715897464424,-290.19748129,0.00011849,2]
[327204656,1715897464433,-844.783918,0.00011849,2]
[327204657,1715897464444,-1292.3296,0.00011849,2]
[327204658,1715897464454,-207.6704,0.00011849,2]
[327204659,1715897464465,-1427.65967456,0.00011849,2]
[327204704,1715898631919,-339.76818,9.777e-05,2]
[327204706,1715898631930,-346.22505766,9.777e-05,2]
[327204707,1715898631939,-228.10465609,9.778e-05,2]
[327204708,1715898632056,-611.71059997,9.778e-05,2]
[327204709,1715898632068,-0.18474394,9.778e-05,2]
[327204710,1715898632077,-2361.52496939,9.79e-05,2]
[327204711,1715898632087,-3799.98,9.791e-05,2]
[327204712,1715898632097,-250.0,9.795e-05,2]
[327204713,1715898632106,-250.0,9.795e-05,2]
[327204714,1715898632116,-203.3044281,9.796e-05,2]
[327204715,1715898632128,-154.13,9.797e-05,2]
[327204716,1715898632137,-177.5,0.00010435,2]
[327204717,1715898632146,-177.5,0.00010464,2]
[327204718,1715898632155,-150.0,0.00010471,2]
[327204719,1715898632164,-160.0,0.00010472,2]
[327204720,1715898632174,-2160.68,0.00010472,2]
[327204721,1715898632184,-177.5,0.00010492,2]
[327204722,1715898632193,-177.5,0.00010521,2]
[327204723,1715898632203,-177.5,0.0001055,2]
[327204724,1715898632213,-203.3044281,0.00010564,2]
[327204725,1715898632222,-176.89,0.00010574,2]
[327204726,1715898632232,-177.5,0.00010578,2]
[327204727,1715898632241,-177.5,0.00010607,2]
[327204728,1715898632252,-3342.51,0.0001063,15]
[327204729,1715898632261,-177.5,0.00010636,2]
[327204730,1715898632271,-177.5,0.00010664,2]
[327204731,1715898632283,-177.5,0.00010693,2]
[327204732,1715898632293,-177.5,0.00010721,2]
[327204733,1715898632302,-177.5,0.0001075,2]
[327204734,1715898632312,-177.5,0.00010779,2]
[327204735,1715898632321,-157.14100968,0.00010807,2]
[327204736,1715898632333,-20.35899032,0.00010807,2]
[327204737,1715898632343,-10000.0,0.00010829,2]
[327204739,1715898632353,-177.5,0.00010836,2]
[327204741,1715898632362,-305.6611,0.00010858,2]
[327204743,1715898632372,-21114.21827814,0.00010858,2]
[327204745,1715898632384,-12122.65552186,0.00010858,2]
[327204747,1715898632393,-35829.48630681,0.00010858,2]
[327204750,1715898632405,-15129.39754987,0.00010858,2]
[327204753,1715898632438,-49041.11614332,0.00010858,2]
[327204755,1715898632447,-177.5,0.00010865,2]
[327204757,1715898632458,-1835.2682,0.00010879,2]
[327204758,1715898632467,-8074.8189,0.00010879,2]
[327204759,1715898632476,-452.97,0.00010879,2]
[327204760,1715898632487,-177.5,0.00010893,2]
[327204761,1715898632497,-177.5,0.00010922,2]
[327204762,1715898632506,-177.5,0.00010951,2]
[327204763,1715898632515,-150.99,0.00010959,2]
[327204764,1715898632524,-354.17,0.00010959,2]
[327204765,1715898632536,-3005.0,0.00010959,2]
[327204766,1715898632545,-295.14,0.00010959,2]
[327204767,1715898632554,-819.2698,0.00010979,2]
[327204768,1715898632563,-330.1203,0.00010979,2]
[327204769,1715898632573,-528.8047,0.00010979,2]
[327204770,1715898632583,-177.5,0.00010979,2]
[327204771,1715898632592,-200.0,0.00011,2]
[327204772,1715898632602,-354.20262089,0.00011,2]
[327204773,1715898637957,-245.95,0.00010959,2]
[327204775,1715898637967,-485.79737911,0.00011,2]
[327204777,1715898637976,-154.13,0.00011021,2]
[327204778,1715898637986,-500.0,0.00011177,2]
[327204780,1715898637996,-577.5,0.00011177,2]
[327204782,1715898638016,-500.0,0.00011177,2]
[327204784,1715898638026,-368.8481249,0.00011177,2]
[327204786,1715898638037,-131.1518751,0.00011177,2]
[327204788,1715898638047,-1776.01,0.00011177,2]
[327204789,1715898638056,-725.43,0.00011177,2]
[327204791,1715898638065,-13685.65584176,0.00011177,2]
[327204793,1715898638077,-4556.08170398,0.00011177,2]
[327204795,1715898638088,-8058.39939461,0.00011177,2]
[327204797,1715898638100,-128.65305965,0.00011177,2]
[327204799,1715898638109,-2565.52,0.00011177,2]
[327204801,1715898638118,-500.0,0.00011177,2]
[327204803,1715898638129,-143.39872915,0.00011177,2]
[327204805,1715898638140,-356.60127085,0.00011177,2]
[327204806,1715898638149,-345.86205724,0.00011177,2]
[327204808,1715898638158,-2785.62,0.00011177,2]
[327204810,1715898638167,-500.0,0.00011177,2]
[327204812,1715898638176,-500.0,0.00011177,2]
[327204814,1715898638185,-474.27578406,0.00011177,2]
[327204815,1715898638194,-500.0,0.00011178,2]
[327204817,1715898638203,-500.0,0.00011178,2]
[327204818,1715898638212,-500.0,0.00011178,2]
[327204819,1715898638221,-500.0,0.00011178,2]
[327204820,1715898638230,-500.0,0.00011178,2]
[327204821,1715898638239,-598.35699507,0.00011178,2]
[327204822,1715898638248,-520.03,0.00011178,2]
[327204823,1715898638257,-527.01,0.00011178,2]
[327204824,1715898638266,-1032.23,0.00011178,2]
[327204825,1715898638276,-500.0,0.00011178,2]
[327204826,1715898638285,-652.89,0.00011178,2]
[327204827,1715898638294,-500.0,0.00011178,2]
[327204828,1715898638303,-500.0,0.00011178,2]
[327204829,1715898638312,-500.0,0.00011178,2]
[327204831,1715898638321,-500.0,0.00011178,2]
[327204832,1715898638330,-154.33351001,0.00011178,2]
[327204833,1715898638339,-500.0,0.00011178,2]
[327204834,1715898638348,-500.0,0.00011178,2]
[327204835,1715898638357,-500.0,0.00011178,2]
[327204836,1715898638367,-500.0,0.00011178,2]
[327204837,1715898638378,-500.0,0.00011178,2]
[327204838,1715898638387,-827.98,0.00011178,2]
[327204839,1715898638396,-1101.54,0.00011178,2]
[327204840,1715898638405,-512.63876573,0.00011178,2]
[327204841,1715898638414,-500.0,0.00011178,2]
[327204842,1715898638429,-595.33,0.00011178,2]
[327204843,1715898638438,-500.0,0.00011178,2]
[327204844,1715898638639,-708.68,0.00011178,2]
[327204845,1715898638650,-880.22,0.00011178,2]
[327204846,1715898638660,-500.0,0.00011178,2]
[327204847,1715898638669,-1040.32,0.00011178,2]
[327204848,1715898638680,-1186.98,0.00011178,2]
[327204849,1715898638690,-1005.97,0.00011178,2]
[327204850,1715898638700,-1064.41,0.00011178,2]
[327204851,1715898638709,-500.0,0.00011178,2]
[327204852,1715898638718,-564.35,0.00011178,2]
[327204853,1715898638727,-994.76,0.00011178,2]
[327204854,1715898638736,-1147.86,0.00011178,2]
[327204855,1715898638745,-1170.17,0.00011178,2]
[327204856,1715898638754,-500.0,0.00011178,2]
[327204857,1715898638763,-224.36875559,0.00011178,2]
[327204858,1715898638772,-500.0,0.00011178,2]
[327204859,1715898638781,-500.0,0.00011178,2]
[327204860,1715898638790,-619.53,0.00011178,2]
[327204861,1715898638799,-673.71,0.00011178,2]
[327204862,1715898638808,-906.15,0.00011178,2]
[327204863,1715898638817,-676.79,0.00011178,2]
[327204864,1715898638826,-721.59,0.00011178,2]
[327204865,1715898638836,-594.73,0.00011178,2]
[327204866,1715898638845,-500.0,0.00011178,2]
[327204867,1715898638856,-500.0,0.00011178,2]
[327204868,1715898638866,-793.2,0.00011178,2]
[327204869,1715898638876,-1329.35,0.00011178,2]
[327204870,1715898638886,-1301.06,0.00011178,2]
[327204871,1715898638895,-500.0,0.00011178,2]
[327204872,1715898638904,-713.75,0.00011178,2]
[327204873,1715898638913,-953.53,0.00011178,2]
[327204874,1715898638922,-500.0,0.00011178,2]
[327204875,1715898638931,-1231.03,0.00011178,2]
[327204876,1715898638940,-500.0,0.00011178,2]
[327204877,1715898638949,-683.48,0.00011178,2]
[327204878,1715898638958,-500.0,0.00011178,2]
[327204879,1715898638967,-500.0,0.00011178,2]
[327204880,1715898638976,-500.0,0.00011178,2]
[327204881,1715898638986,-500.0,0.00011178,2]
[327204882,1715898638995,-500.0,0.00011178,2]
[327204883,1715898639004,-500.0,0.00011178,2]
[327204884,1715898639013,-500.0,0.00011178,2]
[327204885,1715898639023,-500.0,0.00011178,2]
[327204886,1715898639032,-500.0,0.00011178,2]
[327204887,1715898639041,-500.0,0.00011178,2]
[327204888,1715898639050,-500.0,0.00011178,2]
[327204889,1715898639060,-500.0,0.00011178,2]
[327204890,1715898639069,-567.1,0.00011178,2]
[327204891,1715898639079,-625.83,0.00011178,2]
[327204892,1715898639088,-676.18,0.00011178,2]
[327204893,1715898639098,-1323.9,0.00011178,2]
[327204894,1715898639107,-634.96,0.00011178,2]
[327204895,1715898639117,-4044.06,0.00011178,2]
[327204896,1715898639126,-603.22,0.00011178,2]
[327204897,1715898639136,-560.23,0.00011178,2]
[327204898,1715898639145,-1051.92,0.00011178,2]
[327204899,1715898639155,-1409.4,0.00011178,2]
[327204900,1715898639164,-500.0,0.00011178,2]
[327204901,1715898639173,-500.0,0.00011178,2]
[327204902,1715898639183,-1835.87,0.00011178,2]
[327204903,1715898639192,-500.0,0.00011178,2]
[327204904,1715898639202,-3522.13,0.00011178,2]
[327204905,1715898639211,-1625.36,0.00011178,2]
[327204906,1715898639221,-500.0,0.00011178,2]
[327204907,1715898639230,-500.0,0.00011178,2]
[327204908,1715898639241,-1800.17,0.00011178,2]
[327204909,1715898639250,-522.99,0.00011178,2]
[327204910,1715898639260,-1355.55,0.00011178,2]
[327204911,1715898639270,-1150.88,0.00011178,2]
[327204912,1715898639279,-13721.42,0.00011178,2]
[327204913,1715898639288,-500.0,0.00011178,2]
[327204914,1715898639298,-500.0,0.00011178,2]
[327204915,1715898639307,-1341.08,0.00011178,2]
[327204916,1715898639317,-500.0,0.00011179,2]
[327204917,1715898639326,-500.0,0.00011179,2]
[327204918,1715898639335,-500.0,0.00011179,2]
[327204919,1715898639344,-500.0,0.00011179,2]
[327204920,1715898639352,-500.0,0.00011179,2]
[327204921,1715898639362,-500.0,0.00011179,2]
[327204922,1715898639371,-366.17852157,0.00011179,2]
[327204923,1715898639382,-500.0,0.00011179,2]
[327204924,1715898639391,-500.0,0.00011179,2]
[327204925,1715898639401,-500.0,0.00011179,2]
[327204926,1715898639411,-500.0,0.00011179,2]
[327204927,1715898639424,-500.0,0.00011179,2]
[327204928,1715898639434,-500.0,0.00011179,2]
[327204929,1715898639442,-518.77,0.00011179,2]
[327204930,1715898639451,-500.0,0.00011179,2]
[327204931,1715898639461,-500.0,0.00011179,2]
[327204932,1715898639471,-500.0,0.00011179,2]
[327204933,1715898639481,-500.0,0.00011179,2]
[327204934,1715898639491,-500.0,0.00011179,2]
[327204935,1715898639503,-506.70386646,0.00011179,2]
[327204936,1715898639513,-500.0,0.00011179,2]
[327204937,1715898639523,-500.0,0.00011179,2]
[327204938,1715898639533,-500.0,0.00011179,2]
[327204939,1715898639543,-535.3771223,0.00011179,2]
[327204940,1715898639553,-500.0,0.00011179,2]
[327204941,1715898639563,-500.0,0.00011179,2]
[327204942,1715898639573,-500.0,0.00011179,2]
[327204943,1715898639583,-500.0,0.00011179,2]
[327204944,1715898639593,-500.0,0.00011179,2]
[327204945,1715898639603,-500.0,0.00011179,2]
[327204946,1715898639613,-500.0,0.00011179,2]
[327204947,1715898639623,-500.0,0.00011179,2]
[327204948,1715898639634,-500.0,0.00011179,2]
[327204949,1715898639644,-500.0,0.00011179,2]
[327204950,1715898639654,-500.0,0.00011179,2]
[327204951,1715898639664,-500.0,0.00011179,2]
[327204952,1715898639674,-827.98,0.00011179,2]
[327204953,1715898639684,-500.0,0.00011179,2]
[327204954,1715898639693,-708.68,0.00011179,2]
[327204955,1715898639703,-531.82839816,0.00011179,2]
[327204956,1715898639713,-1186.98,0.00011179,2]
[327204957,1715898639723,-1064.41,0.00011179,2]
[327204958,1715898639732,-500.0,0.00011179,2]
[327204959,1715898639742,-564.35,0.00011179,2]
[327204960,1715898639752,-500.0,0.00011179,2]
[327204961,1715898639762,-500.0,0.00011179,2]
[327204962,1715898639772,-500.0,0.00011179,2]
[327204963,1715898639782,-683.48,0.00011179,2]
[327204964,1715898639791,-183.98,0.0001118,2]
[327204965,1715898639801,-397.20111255,0.00011255,2]
[327204966,1715898639816,-360.81366942,0.00011255,2]
[327204967,1715898639826,-1656.34,0.00011255,2]
[327204968,1715898639835,-7500.0,0.00011282,2]
[327204969,1715898639844,-1103.0,0.00011382,2]
[327204970,1715898639854,-2158.0,0.00011382,2]
[327204971,1715898639863,-2158.0,0.00011382,2]
[327204972,1715898639872,-1398.0,0.00011382,2]
[327204973,1715898639883,-973.0,0.00011382,2]
[327204974,1715898639892,-5913.0,0.00011382,2]
[327204975,1715898639901,-1226.0,0.00011382,2]
[327204976,1715898639911,-1261.0,0.00011382,2]
[327204977,1715898639920,-661.265,0.00011382,2]
[327204978,1715898639929,-1789.0,0.00011382,2]
[327204979,1715898639939,-290.468,0.00011382,2]
[327204980,1715898639948,-5752.0,0.00011382,2]
[327204981,1715898639958,-499.99,0.00011382,2]
[327204982,1715898639967,-176.97596355,0.00011517,2]
[327204983,1715898639977,-269.43582416,0.00011608,2]
[327204984,1715898639987,-152.01,0.00011616,2]
[327204985,1715898639997,-500.0,0.00011616,2]
[327204986,1715898640007,-616.15,0.00011617,2]
[327204987,1715898640018,-500.0,0.00011617,2]
[327204989,1715898640028,-610.35,0.00011617,2]
[327204990,1715898640037,-189.38339337,0.00011617,2]
[327204991,1715898640047,-500.0,0.00011617,2]
[327204992,1715898640056,-500.0,0.00011617,2]
[327204993,1715898640066,-500.0,0.00011617,2]
[327204994,1715898640075,-500.0,0.00011617,2]
[327204995,1715898640086,-500.0,0.00011617,2]
[327204996,1715898640095,-500.0,0.00011617,2]
[327204997,1715898640105,-500.0,0.00011617,2]
[327204998,1715898640114,-500.0,0.00011617,2]
[327204999,1715898640124,-500.0,0.00011617,2]
[327205000,1715898640135,-500.0,0.00011617,2]
[327205001,1715898640145,-500.0,0.00011617,2]
[327205002,1715898640156,-200.62527656,0.00011617,2]
[327205003,1715898640167,-500.0,0.00011617,2]
[327205005,1715898640178,-500.0,0.00011617,2]
[327205007,1715898640189,-500.0,0.00011617,2]
[327205008,1715898640199,-500.0,0.00011617,2]
[327205010,1715898640209,-500.0,0.00011617,2]
[327205012,1715898640219,-500.0,0.00011617,2]
[327205014,1715898640228,-364.342827,0.00011617,2]
[327205016,1715898640238,-500.0,0.00011617,2]
[327205018,1715898640249,-500.0,0.00011617,2]
[327205020,1715898640259,-500.0,0.00011617,2]
[327205021,1715898640270,-500.0,0.00011617,2]
[327205023,1715898640279,-552.35,0.00011617,2]
[327205025,1715898640289,-500.0,0.00011617,2]
[327205026,1715898640298,-500.0,0.00011617,2]
[327205028,1715898640307,-500.0,0.00011617,2]
[327205029,1715898640317,-500.0,0.00011617,2]
[327205030,1715898640327,-500.0,0.00011617,2]
[327205031,1715898640336,-1158.6,0.00011617,2]
[327205032,1715898640346,-524.84,0.00011617,2]
[327205033,1715898640356,-500.0,0.00011617,2]
[327205035,1715898640366,-744.28,0.00011617,2]
[327205037,1715898640376,-500.0,0.00011617,2]
[327205039,1715898640386,-500.0,0.00011617,2]
[327205041,1715898640396,-500.0,0.00011617,2]
[327205043,1715898640406,-500.0,0.00011617,2]
[327205046,1715898640415,-500.0,0.00011617,2]
[327205047,1715898640430,-500.0,0.00011617,2]
[327205049,1715898640440,-500.0,0.00011617,2]
[327205051,1715898640449,-270.4,0.00011617,2]
[327205053,1715898640459,-500.0,0.00011617,2]
[327205055,1715898640470,-1002.92,0.00011617,2]
[327205057,1715898640479,-964.12,0.00011617,2]
[327205059,1715898640488,-500.0,0.00011617,2]
[327205061,1715898640498,-500.0,0.00011617,2]
[327205062,1715898640510,-500.0,0.00011617,2]
[327205063,1715898640519,-500.0,0.00011617,2]
[327205064,1715898640529,-649.6,0.00011617,2]
[327205065,1715898640538,-500.0,0.00011617,2]
[327205066,1715898640548,-500.0,0.00011617,2]
[327205067,1715898640557,-500.0,0.00011617,2]
[327205068,1715898640567,-500.0,0.00011617,2]
[327205069,1715898640576,-763.3,0.00011617,2]
[327205070,1715898640586,-500.0,0.00011617,2]
[327205071,1715898640595,-500.0,0.00011617,2]
[327205072,1715898640605,-649.26,0.00011617,2]
[327205073,1715898640614,-500.0,0.00011617,2]
[327205074,1715898640624,-567.37,0.00011617,2]
[327205075,1715898640635,-500.0,0.00011617,2]
[327205076,1715898640644,-638.43,0.00011617,2]
[327205077,1715898640654,-608.93129614,0.00011617,2]
[327205078,1715898640663,-1573.5,0.00011617,2]
[327205079,1715898640672,-500.0,0.00011617,2]
[327205080,1715898640682,-500.0,0.00011617,2]
[327205081,1715898640691,-637.27,0.00011617,2]
[327205082,1715898640700,-500.0,0.00011617,2]
[327205083,1715898640709,-1422.09,0.00011617,2]
[327205084,1715898640718,-529.9474768,0.00011617,2]
[327205085,1715898640728,-500.0,0.00011617,2]
[327205086,1715898640738,-567.1,0.00011617,2]
[327205087,1715898640747,-1015.05,0.00011617,2]
[327205088,1715898640756,-676.18,0.00011617,2]
[327205089,1715898640766,-1323.9,0.00011617,2]
[327205090,1715898640775,-676.98,0.00011617,2]
[327205091,1715898640784,-4044.06,0.00011617,2]
[327205092,1715898640794,-603.22,0.00011617,2]
[327205093,1715898640803,-500.0,0.00011617,2]
[327205094,1715898640812,-500.0,0.00011617,2]
[327205095,1715898640821,-1409.4,0.00011617,2]
[327205096,1715898640830,-679.49,0.00011617,2]
[327205097,1715898640839,-500.0,0.00011617,2]
[327205098,1715898640849,-500.0,0.00011617,2]
[327205099,1715898640859,-1149.75,0.00011617,2]
[327205100,1715898640868,-500.0,0.00011617,2]
[327205101,1715898640877,-1835.87,0.00011617,2]
[327205102,1715898640887,-500.0,0.00011617,2]
[327205103,1715898640896,-1159.57,0.00011617,2]
[327205104,1715898640907,-3522.13,0.00011617,2]
[327205105,1715898640916,-1119.18,0.00011617,2]
[327205106,1715898640925,-500.0,0.00011617,2]
[327205107,1715898640935,-577.5,0.00011617,2]
[327205108,1715898640944,-864.92,0.00011617,2]
[327205109,1715898640953,-1625.36,0.00011617,2]
[327205110,1715898640962,-500.0,0.00011617,2]
[327205111,1715898640971,-500.0,0.00011617,2]
[327205112,1715898640981,-500.0,0.00011617,2]
[327205113,1715898640992,-1717.67,0.00011617,2]
[327205114,1715898641001,-500.0,0.00011617,2]
[327205115,1715898641012,-500.0,0.00011617,2]
[327205116,1715898641021,-1800.17,0.00011617,2]
[327205117,1715898641031,-1789.55,0.00011617,2]
[327205118,1715898641040,-522.99,0.00011617,2]
[327205119,1715898641050,-1355.55,0.00011617,2]
[327205120,1715898641059,-1776.01,0.00011617,2]
[327205121,1715898641068,-1150.88,0.00011617,2]
[327205122,1715898641078,-725.43,0.00011617,2]
[327205123,1715898641087,-13721.42,0.00011617,2]
[327205124,1715898641097,-26428.79,0.00011617,2]
[327205125,1715898641107,-2565.52,0.00011617,2]
[327205126,1715898641116,-500.0,0.00011617,2]
[327205127,1715898641127,-500.0,0.00011617,2]
[327205128,1715898641138,-500.0,0.00011617,2]
[327205129,1715898641147,-500.0,0.00011617,2]
[327205130,1715898641156,-500.0,0.00011617,2]
[327205131,1715898641167,-500.0,0.00011617,2]
[327205132,1715898641176,-500.0,0.00011617,2]
[327205133,1715898641186,-521.2,0.00011617,2]
[327205134,1715898641195,-2785.62,0.00011617,2]
[327205135,1715898641206,-500.0,0.00011617,2]
[327205136,1715898641215,-1341.08,0.00011617,2]
[327205137,1715898641224,-89484.16462977,0.00011618,2]
[327205138,1715898641238,-479.77795545,0.00011618,2]
[327205139,1715898641251,-746.89027862,0.00011618,2]
[327205140,1715898641262,-4422.33067648,0.00011618,2]
[327205141,1715898641368,-2145.76887824,0.00011618,2]
[327205142,1715898641381,-7775.14443327,0.00011618,2]
[327205143,1715898641392,-438.91764752,0.00011618,2]
[327205144,1715898641404,-450.48465031,0.00011618,2]
[327205145,1715898641439,-500.0,0.00011177,2]
[327205146,1715898641449,-6206.4,0.00011618,2]
[327205147,1715898641460,-675.13887568,0.00011618,2]
[327205148,1715898641473,-940.33955,0.00011618,2]
[327205149,1715898641484,-1637.09935816,0.00011618,2]
[327205150,1715898641495,-1417.15399539,0.00011618,2]
[327205151,1715898641705,-500.0,0.00011616,2]
[327205152,1715898641715,-2834.45384146,0.00011618,2]
[327205153,1715898641733,-61768.58753521,0.00011618,2]
[327205154,1715898641745,-12584.05439444,0.00011618,2]
[327205155,1715898641755,-260.39182396,0.00011747,2]
[327205156,1715898641985,-174.44799409,0.00011748,2]
[327205157,1715898641996,-176.97596354,0.00011749,2]
[327205158,1715898642005,-500.0,0.00011779,2]
[327205159,1715898642015,-160.0,0.00011781,2]
[327205160,1715898642024,-500.0,0.00011787,2]
[327205161,1715898642034,-500.0,0.00011796,2]
[327205162,1715898642043,-2000.0,0.000118,2]
[327205163,1715898642052,-500.0,0.00011805,2]
[327205164,1715898642061,-500.0,0.00011814,2]
[327205165,1715898642070,-500.0,0.00011823,2]
[327205166,1715898642080,-500.0,0.00011831,2]
[327205167,1715898642089,-500.0,0.00011835,2]
[327205168,1715898642102,-500.0,0.00011835,2]
[327205169,1715898642112,-500.0,0.00011836,2]
[327205170,1715898642121,-500.0,0.00011836,2]
[327205171,1715898642131,-500.0,0.00011836,2]
[327205172,1715898642141,-500.0,0.00011836,2]